[Event "Live Chess"]
[Site "Chess.com"]
[Date "2024.06.02"]
[Round "-"]
[White "chessgoatpawel"]
[Black "ProfessorChess101"]
[Result "0-1"]
[WhiteElo "2083"]
[BlackElo "2728"]
[TimeControl "300"]
[EndTime "2:06:39 PDT"]
[Termination "ProfessorChess101 won by resignation"]

1. e4 {[%clk 0:04:58.5]} 1... a6 {[%clk 0:04:57.1]} 2. d4 {[%clk 0:04:55.2]}
2... b5 {[%clk 0:04:56]} 3. Nf3 {[%clk 0:04:54]} 3... Bb7 {[%clk 0:04:55.1]} 4.
Bd3 {[%clk 0:04:51.3]} 4... e6 {[%clk 0:04:53.9]} 5. O-O {[%clk 0:04:50.3]} 5...
d6 {[%clk 0:04:53]} 6. a4 {[%clk 0:04:49.3]} 6... b4 {[%clk 0:04:51.9]} 7. Bd2
{[%clk 0:04:48.1]} 7... a5 {[%clk 0:04:48.5]} 8. Re1 {[%clk 0:04:45.6]} 8... Nd7
{[%clk 0:04:47.3]} 9. Bg5 {[%clk 0:04:41.7]} 9... Be7 {[%clk 0:04:44.5]} 10. Qd2
{[%clk 0:04:39.8]} 10... h6 {[%clk 0:04:41.2]} 11. Bxe7 {[%clk 0:04:28.9]} 11...
Nxe7 {[%clk 0:04:41.1]} 12. Qf4 {[%clk 0:04:25.6]} 12... Ng6 {[%clk 0:04:35.9]}
13. Qg3 {[%clk 0:04:24.3]} 13... e5 {[%clk 0:04:27.1]} 14. dxe5 {[%clk
0:04:13.2]} 14... dxe5 {[%clk 0:04:20.4]} 15. h4 {[%clk 0:04:10.3]} 15... O-O
{[%clk 0:04:12.7]} 16. h5 {[%clk 0:04:05.8]} 16... Nf4 {[%clk 0:04:09.4]} 17.
Nxe5 {[%clk 0:03:42.1]} 17... Nxe5 {[%clk 0:04:07.2]} 18. Qxf4 {[%clk
0:03:40.7]} 18... Nxd3 {[%clk 0:04:06.7]} 19. cxd3 {[%clk 0:03:38.6]} 19... Qxd3
{[%clk 0:04:06.6]} 20. Nd2 {[%clk 0:03:30.1]} 20... Rad8 {[%clk 0:04:04.2]} 21.
Nf3 {[%clk 0:03:28.8]} 21... c5 {[%clk 0:03:53.1]} 22. Ne5 {[%clk 0:03:19.1]}
22... Qd6 {[%clk 0:03:50.8]} 23. Rad1 {[%clk 0:03:10.8]} 23... Qc7 {[%clk
0:03:23.2]} 24. Qg3 {[%clk 0:02:41.6]} 24... Rfe8 {[%clk 0:02:51.6]} 25. Nd3
{[%clk 0:02:25.2]} 25... Qxg3 {[%clk 0:02:33]} 26. fxg3 {[%clk 0:02:25.1]} 26...
Rc8 {[%clk 0:02:30.9]} 27. Nf2 {[%clk 0:02:05]} 27... Bc6 {[%clk 0:02:22.1]} 28.
b3 {[%clk 0:01:59.6]} 28... c4 {[%clk 0:02:21.1]} 29. bxc4 {[%clk 0:01:53.4]}
29... Bxa4 {[%clk 0:02:19.6]} 30. Ra1 {[%clk 0:01:52.3]} 30... Bc2 {[%clk
0:02:12.6]} 31. Rxa5 {[%clk 0:01:49.3]} 31... b3 {[%clk 0:02:12.2]} 32. Rb5
{[%clk 0:01:30]} 32... Rb8 {[%clk 0:02:02.9]} 33. Nd1 {[%clk 0:01:21.5]} 33...
Rxb5 {[%clk 0:01:43.5]} 34. cxb5 {[%clk 0:01:18.7]} 34... Rb8 {[%clk 0:01:43.4]}
35. Nc3 {[%clk 0:01:10.9]} 35... b2 {[%clk 0:01:28.8]} 36. Kf2 {[%clk
0:01:03.5]} 36... Rc8 {[%clk 0:01:24.7]} 37. Nb1 {[%clk 0:01:01.3]} 37... Bd3
{[%clk 0:01:03]} 38. Ke3 {[%clk 0:00:51.3]} 38... Rc1 {[%clk 0:00:36]} 39. Kxd3
{[%clk 0:00:27.4]} 39... Rxe1 {[%clk 0:00:34.3]} 40. b6 {[%clk 0:00:27]} 40...
Rxb1 {[%clk 0:00:31.2]} 41. b7 {[%clk 0:00:25.2]} 41... Rd1+ {[%clk 0:00:30.7]}
0-1

[Event "Live Chess"]
[Site "Chess.com"]
[Date "2024.06.02"]
[Round "-"]
[White "ggosyaa"]
[Black "NAZRIZ1977"]
[Result "0-1"]
[WhiteElo "575"]
[BlackElo "2110"]
[TimeControl "300"]
[EndTime "2:06:43 PDT"]
[Termination "NAZRIZ1977 won by checkmate"]

1. d4 {[%clk 0:04:57.7]} 1... Nf6 {[%clk 0:04:58.8]} 2. Bf4 {[%clk 0:04:54.7]}
2... g6 {[%clk 0:04:57.6]} 3. e3 {[%clk 0:04:53.2]} 3... Bg7 {[%clk 0:04:56.4]}
4. Bd3 {[%clk 0:04:50.6]} 4... O-O {[%clk 0:04:55.1]} 5. c3 {[%clk 0:04:48.5]}
5... d5 {[%clk 0:04:54.4]} 6. Nf3 {[%clk 0:04:47.6]} 6... c5 {[%clk 0:04:53.8]}
7. Nbd2 {[%clk 0:04:45.2]} 7... Nc6 {[%clk 0:04:51.3]} 8. O-O {[%clk 0:04:38.2]}
8... Nd7 {[%clk 0:04:50.5]} 9. Re1 {[%clk 0:04:31.8]} 9... e5 {[%clk 0:04:48.8]}
10. Bg5 {[%clk 0:04:27.6]} 10... f6 {[%clk 0:04:46.5]} 11. Bh4 {[%clk
0:04:21.1]} 11... e4 {[%clk 0:04:45.6]} 12. Nxe4 {[%clk 0:04:18.5]} 12... dxe4
{[%clk 0:04:44.8]} 13. Bxe4 {[%clk 0:04:18.1]} 13... cxd4 {[%clk 0:04:43.1]} 14.
exd4 {[%clk 0:04:16.8]} 14... Qa5 {[%clk 0:04:36.5]} 15. Qb3+ {[%clk 0:04:12.2]}
15... Kh8 {[%clk 0:04:34.6]} 16. Rad1 {[%clk 0:03:59.3]} 16... Nb6 {[%clk
0:04:33.5]} 17. a3 {[%clk 0:03:36]} 17... Qa4 {[%clk 0:04:30.6]} 18. Qa2 {[%clk
0:03:22.6]} 18... Bg4 {[%clk 0:04:25.2]} 19. Qb1 {[%clk 0:03:14.6]} 19... f5
{[%clk 0:04:20]} 20. Bc2 {[%clk 0:03:03.9]} 20... Qc4 {[%clk 0:04:18.7]} 21. Rd2
{[%clk 0:02:58.9]} 21... Rae8 {[%clk 0:04:15]} 22. Ng5 {[%clk 0:02:52.1]} 22...
h6 {[%clk 0:04:07.1]} 23. Ne4 {[%clk 0:02:36.2]} 23... fxe4 {[%clk 0:04:02.2]}
24. Bxe4 {[%clk 0:02:35]} 24... Nd5 {[%clk 0:03:55.6]} 25. Bxg6 {[%clk
0:02:29.9]} 25... Rxe1+ {[%clk 0:03:49.4]} 26. Qxe1 {[%clk 0:02:25.5]} 26... Nf4
{[%clk 0:03:46.4]} 27. Be4 {[%clk 0:02:14.6]} 27... Qf7 {[%clk 0:03:38.6]} 28.
g3 {[%clk 0:02:09.7]} 28... Nh3+ {[%clk 0:03:31.1]} 29. Kg2 {[%clk 0:02:05]}
29... Bd7 {[%clk 0:03:28.7]} 30. Rd3 {[%clk 0:01:46.4]} 30... Ng5 {[%clk
0:03:22.7]} 31. Re3 {[%clk 0:01:39.6]} 31... Nxe4 {[%clk 0:03:21.1]} 32. Rxe4
{[%clk 0:01:38.1]} 32... Qf3+ {[%clk 0:03:19]} 33. Kf1 {[%clk 0:01:35.3]} 33...
Bh3+ {[%clk 0:03:17.7]} 34. Kg1 {[%clk 0:01:32.4]} 34... Qg2# {[%clk 0:03:16.7]}
0-1

[Event "Live Chess"]
[Site "Chess.com"]
[Date "2024.06.02"]
[Round "-"]
[White "Brooms1989"]
[Black "MagnersCarlsberg2870"]
[Result "0-1"]
[WhiteElo "1156"]
[BlackElo "1816"]
[TimeControl "300"]
[EndTime "2:07:13 PDT"]
[Termination "MagnersCarlsberg2870 won by resignation"]

1. e4 {[%clk 0:04:56.5]} 1... e5 {[%clk 0:04:59]} 2. Nc3 {[%clk 0:04:55.6]} 2...
Nc6 {[%clk 0:04:56.7]} 3. Bc4 {[%clk 0:04:54.1]} 3... Nf6 {[%clk 0:04:55.5]} 4.
d3 {[%clk 0:04:52.7]} 4... Bc5 {[%clk 0:04:53.9]} 5. f4 {[%clk 0:04:50.8]} 5...
d6 {[%clk 0:04:52]} 6. Nf3 {[%clk 0:04:47.1]} 6... Bg4 {[%clk 0:04:50.8]} 7.
fxe5 {[%clk 0:04:25.1]} 7... Nxe5 {[%clk 0:04:49]} 8. Rf1 {[%clk 0:04:20.4]}
8... Nxc4 {[%clk 0:04:45.7]} 9. dxc4 {[%clk 0:04:19.1]} 9... Qe7 {[%clk
0:04:42.2]} 10. Qd3 {[%clk 0:04:07.7]} 10... O-O-O {[%clk 0:04:35.7]} 11. Bg5
{[%clk 0:03:57.7]} 11... h6 {[%clk 0:04:32.2]} 12. Bxf6 {[%clk 0:03:49.5]} 12...
gxf6 {[%clk 0:04:29.3]} 13. O-O-O {[%clk 0:03:44.4]} 13... Rhe8 {[%clk 0:04:16]}
14. Rde1 {[%clk 0:03:25.1]} 14... Bb4 {[%clk 0:04:03.6]} 15. a3 {[%clk
0:03:22.9]} 15... Bxc3 {[%clk 0:04:02.5]} 16. bxc3 {[%clk 0:03:21.6]} 16... d5
{[%clk 0:03:59.9]} 17. cxd5 {[%clk 0:03:19.1]} 17... Qxa3+ {[%clk 0:03:58.7]}
18. Kd2 {[%clk 0:03:16.3]} 18... c6 {[%clk 0:03:48]} 19. Rd1 {[%clk 0:03:14.3]}
19... cxd5 {[%clk 0:03:46.1]} 20. Ra1 {[%clk 0:03:12.5]} 20... Qc5 {[%clk
0:03:44]} 21. Rfe1 {[%clk 0:02:56.8]} 21... Bxf3 {[%clk 0:03:40]} 0-1

[Event "Live Chess"]
[Site "Chess.com"]
[Date "2024.06.02"]
[Round "-"]
[White "ProfPoisson"]
[Black "jellhhggffhjjjjjj"]
[Result "1-0"]
[WhiteElo "1333"]
[BlackElo "481"]
[TimeControl "300"]
[EndTime "2:07:29 PDT"]
[Termination "ProfPoisson won - game abandoned"]

1. e4 {[%clk 0:04:53.8]} 1... g6 {[%clk 0:04:58.3]} 2. f4 {[%clk 0:04:48.8]}
2... Bg7 {[%clk 0:04:57.1]} 3. Nf3 {[%clk 0:04:46]} 3... d6 {[%clk 0:04:56.6]}
4. Bc4 {[%clk 0:04:43.9]} 4... f5 {[%clk 0:04:54.3]} 5. exf5 {[%clk 0:04:39.5]}
5... Bxf5 {[%clk 0:04:52.9]} 6. Ng5 {[%clk 0:04:33.8]} 6... d5 {[%clk
0:04:47.7]} 7. Bb3 {[%clk 0:04:26]} 7... e6 {[%clk 0:04:43.9]} 8. O-O {[%clk
0:04:23.9]} 8... Nf6 {[%clk 0:04:42.2]} 9. Nf3 {[%clk 0:04:14.9]} 9... Nbd7
{[%clk 0:04:39.4]} 10. Nc3 {[%clk 0:04:10.1]} 10... c5 {[%clk 0:04:36.6]} 11.
Ba4 {[%clk 0:03:55.5]} 11... Qb6 {[%clk 0:04:29.5]} 12. Ne5 {[%clk 0:03:51.9]}
12... Rd8 {[%clk 0:04:06]} 13. Re1 {[%clk 0:03:43.3]} 13... O-O {[%clk
0:04:03.4]} 14. b3 {[%clk 0:03:20.7]} 14... Nxe5 {[%clk 0:04:01.8]} 15. fxe5
{[%clk 0:03:17.5]} 15... Ne4 {[%clk 0:04:00.6]} 16. Nxe4 {[%clk 0:03:07.3]}
16... Bxe4 {[%clk 0:03:56.5]} 17. d3 {[%clk 0:03:05.7]} 17... Bf5 {[%clk
0:03:50.8]} 18. c4 {[%clk 0:02:44.7]} 18... dxc4 {[%clk 0:03:46.3]} 19. bxc4
{[%clk 0:02:42.7]} 19... Rxd3 {[%clk 0:03:36.7]} 20. Qe2 {[%clk 0:02:24.8]}
20... Qb4 {[%clk 0:03:25.5]} 21. Bc2 {[%clk 0:02:19.8]} 21... Rd7 {[%clk
0:03:19.1]} 22. Bxf5 {[%clk 0:02:09]} 22... Rfd8 {[%clk 0:03:06.9]} 23. Bxe6+
{[%clk 0:02:04.2]} 23... Kh8 {[%clk 0:03:04.3]} 24. Bxd7 {[%clk 0:02:02.8]}
24... Rxd7 {[%clk 0:03:02.5]} 25. Bf4 {[%clk 0:01:49.3]} 25... Rd4 {[%clk
0:02:57.6]} 26. Rab1 {[%clk 0:01:33.6]} 1-0

[Event "Live Chess"]
[Site "Chess.com"]
[Date "2024.06.02"]
[Round "-"]
[White "Queensandpawns"]
[Black "Ferrarifan27"]
[Result "1-0"]
[WhiteElo "2283"]
[BlackElo "2133"]
[TimeControl "300"]
[EndTime "2:07:37 PDT"]
[Termination "Queensandpawns won on time"]

1. e4 {[%clk 0:04:58.4]} 1... e5 {[%clk 0:04:58.1]} 2. d4 {[%clk 0:04:48.7]}
2... exd4 {[%clk 0:04:55.9]} 3. c3 {[%clk 0:04:48.6]} 3... dxc3 {[%clk
0:04:54.4]} 4. Bc4 {[%clk 0:04:48.1]} 4... cxb2 {[%clk 0:04:53.1]} 5. Bxb2
{[%clk 0:04:48]} 5... Bb4+ {[%clk 0:04:51.7]} 6. Kf1 {[%clk 0:04:46]} 6... Nf6
{[%clk 0:04:44.6]} 7. e5 {[%clk 0:04:39.5]} 7... Ng8 {[%clk 0:04:42.6]} 8. Bxf7+
{[%clk 0:04:24.2]} 8... Kxf7 {[%clk 0:04:41.1]} 9. Qb3+ {[%clk 0:04:22.8]} 9...
Kf8 {[%clk 0:04:39.8]} 10. Qxb4+ {[%clk 0:04:21.7]} 10... Qe7 {[%clk 0:04:37.1]}
11. Qd4 {[%clk 0:04:15.9]} 11... Nc6 {[%clk 0:04:34]} 12. Qf4+ {[%clk 0:04:13]}
12... Qf7 {[%clk 0:04:33]} 13. Qe3 {[%clk 0:04:10.2]} 13... Nge7 {[%clk
0:04:26.8]} 14. Nf3 {[%clk 0:04:09.6]} 14... d6 {[%clk 0:04:19.9]} 15. Ng5
{[%clk 0:04:06.9]} 15... Qc4+ {[%clk 0:04:15.8]} 16. Ke1 {[%clk 0:04:02]} 16...
Nxe5 {[%clk 0:04:07.3]} 17. Bxe5 {[%clk 0:03:46.9]} 17... dxe5 {[%clk
0:04:06.3]} 18. Nd2 {[%clk 0:03:46.8]} 18... Qd4 {[%clk 0:03:54.7]} 19. Qb3
{[%clk 0:02:59]} 19... Qd5 {[%clk 0:03:02.8]} 20. Qc3 {[%clk 0:02:28.1]} 20...
Qxg2 {[%clk 0:02:32.3]} 21. Ndf3 {[%clk 0:02:27.4]} 21... Qxh1+ {[%clk
0:01:43.1]} 22. Ke2 {[%clk 0:02:26.9]} 22... Qg2 {[%clk 0:01:42.1]} 23. Rg1
{[%clk 0:02:15.1]} 23... Qxg1 {[%clk 0:01:32.5]} 24. Nxg1 {[%clk 0:02:15]} 24...
h6 {[%clk 0:01:20.5]} 25. Ne4 {[%clk 0:02:11.5]} 25... Bf5 {[%clk 0:01:15.3]}
26. Qxe5 {[%clk 0:02:04.9]} 26... Bxe4 {[%clk 0:01:08.2]} 27. Qxe4 {[%clk
0:02:04.8]} 27... Re8 {[%clk 0:01:05.9]} 28. Qf4+ {[%clk 0:02:04.1]} 28... Kg8
{[%clk 0:01:01.8]} 29. Kf1 {[%clk 0:02:03.3]} 29... Nd5 {[%clk 0:00:55]} 30. Qc4
{[%clk 0:02:01.5]} 30... c6 {[%clk 0:00:53.7]} 31. Nf3 {[%clk 0:01:58.9]} 31...
Kh7 {[%clk 0:00:51.2]} 32. Qd3+ {[%clk 0:01:52.1]} 32... g6 {[%clk 0:00:50.1]}
33. Nh4 {[%clk 0:01:47.8]} 33... Re6 {[%clk 0:00:46.3]} 34. Qh3 {[%clk
0:01:46.2]} 34... Rhe8 {[%clk 0:00:43.2]} 35. Nf3 {[%clk 0:01:45.3]} 35... Kg7
{[%clk 0:00:33.9]} 36. Qg4 {[%clk 0:01:39.8]} 36... Rf6 {[%clk 0:00:19.5]} 37.
Qd4 {[%clk 0:01:23.7]} 37... Rf8 {[%clk 0:00:17.9]} 38. Nd2 {[%clk 0:01:18]}
38... Kh7 {[%clk 0:00:16.6]} 39. Ne4 {[%clk 0:01:16.5]} 39... Rf4 {[%clk
0:00:15.5]} 40. Qe5 {[%clk 0:01:13.9]} 40... R4f5 {[%clk 0:00:13.3]} 41. Qg3
{[%clk 0:01:09.4]} 41... Rf4 {[%clk 0:00:10.9]} 42. Qd3 {[%clk 0:00:57]} 42...
Re8 {[%clk 0:00:05.7]} 43. Ng3 {[%clk 0:00:52.8]} 43... Ref8 {[%clk 0:00:04.9]}
44. Qd2 {[%clk 0:00:49.3]} 44... Rxf2+ {[%clk 0:00:03.3]} 45. Qxf2 {[%clk
0:00:49.2]} 45... Rxf2+ {[%clk 0:00:02.4]} 46. Kxf2 {[%clk 0:00:49.1]} 46... Nc3
{[%clk 0:00:01.9]} 47. a3 {[%clk 0:00:49]} 47... Nb5 {[%clk 0:00:01.2]} 48. Kg2
{[%clk 0:00:48.9]} 48... Nc3 {[%clk 0:00:01]} 49. Kh3 {[%clk 0:00:48.8]} 49...
Nb1 {[%clk 0:00:00.1]} 50. a4 {[%clk 0:00:48.7]} 1-0

[Event "Live Chess"]
[Site "Chess.com"]
[Date "2024.06.02"]
[Round "-"]
[White "raimundklein"]
[Black "best137"]
[Result "0-1"]
[WhiteElo "1556"]
[BlackElo "1519"]
[TimeControl "300"]
[EndTime "2:07:43 PDT"]
[Termination "best137 won on time"]

1. e4 {[%clk 0:04:57.8]} 1... c6 {[%clk 0:04:58.6]} 2. Nf3 {[%clk 0:04:56.2]}
2... d5 {[%clk 0:04:57.9]} 3. exd5 {[%clk 0:04:55.5]} 3... cxd5 {[%clk
0:04:57.8]} 4. Ne5 {[%clk 0:04:52]} 4... Nf6 {[%clk 0:04:44.7]} 5. Bb5+ {[%clk
0:04:49.3]} 5... Bd7 {[%clk 0:04:37.8]} 6. Nxd7 {[%clk 0:04:47.3]} 6... Nbxd7
{[%clk 0:04:35.1]} 7. d4 {[%clk 0:04:46]} 7... a6 {[%clk 0:04:33.9]} 8. Bd3
{[%clk 0:04:41.7]} 8... e5 {[%clk 0:04:26.9]} 9. dxe5 {[%clk 0:04:32.4]} 9...
Nxe5 {[%clk 0:04:26.8]} 10. Qe2 {[%clk 0:04:30.9]} 10... Qe7 {[%clk 0:04:16.9]}
11. O-O {[%clk 0:04:16.2]} 11... Nxd3 {[%clk 0:04:08.9]} 12. Qxd3 {[%clk
0:04:16.1]} 12... Qe4 {[%clk 0:03:58.4]} 13. Qb3 {[%clk 0:04:10.9]} 13... Bd6
{[%clk 0:03:24]} 14. Nd2 {[%clk 0:03:45.2]} 14... Qh4 {[%clk 0:02:57.2]} 15. Nf3
{[%clk 0:03:43.6]} 15... Qh5 {[%clk 0:02:47.3]} 16. Qxb7 {[%clk 0:03:39.6]}
16... O-O {[%clk 0:02:44.8]} 17. Bg5 {[%clk 0:03:09.3]} 17... Bxh2+ {[%clk
0:02:14.8]} 18. Nxh2 {[%clk 0:03:04.5]} 18... Qxg5 {[%clk 0:02:13.4]} 19. Nf3
{[%clk 0:02:53.8]} 19... Qh5 {[%clk 0:02:09]} 20. b3 {[%clk 0:02:51.2]} 20...
Rac8 {[%clk 0:02:01.5]} 21. Rac1 {[%clk 0:02:49.1]} 21... Rc3 {[%clk 0:01:56.7]}
22. Qxa6 {[%clk 0:02:31.3]} 22... Ng4 {[%clk 0:01:48.6]} 23. Qd6 {[%clk
0:02:13]} 23... f5 {[%clk 0:01:00.7]} 24. Qxd5+ {[%clk 0:01:53.5]} 24... Kh8
{[%clk 0:00:54.5]} 25. Qd6 {[%clk 0:01:50.6]} 25... Kg8 {[%clk 0:00:22.4]} 26.
Rce1 {[%clk 0:00:34.3]} 26... f4 {[%clk 0:00:19.4]} 27. Qe6+ {[%clk 0:00:19.8]}
27... Kh8 {[%clk 0:00:15.5]} 28. Qe7 {[%clk 0:00:08.3]} 28... Rg8 {[%clk
0:00:10.3]} 29. Qh4 {[%clk 0:00:06.5]} 29... Qxh4 {[%clk 0:00:06.8]} 30. Nxh4
{[%clk 0:00:06.2]} 30... Rxc2 {[%clk 0:00:04.3]} 31. a4 {[%clk 0:00:04.3]} 31...
Rcc8 {[%clk 0:00:03.5]} 32. Nf5 {[%clk 0:00:02.5]} 32... Rcf8 {[%clk 0:00:03.4]}
33. Nd4 {[%clk 0:00:00.6]} 33... h6 {[%clk 0:00:03.3]} 0-1

[Event "Live Chess"]
[Site "Chess.com"]
[Date "2024.06.02"]
[Round "-"]
[White "JanMur7"]
[Black "missedJariChance"]
[Result "1-0"]
[WhiteElo "2269"]
[BlackElo "1356"]
[TimeControl "300"]
[EndTime "2:07:45 PDT"]
[Termination "JanMur7 won by resignation"]

1. c4 {[%clk 0:04:58.9]} 1... e6 {[%clk 0:04:54.6]} 2. Nc3 {[%clk 0:04:58]} 2...
Nf6 {[%clk 0:04:52.6]} 3. d4 {[%clk 0:04:57.5]} 3... d5 {[%clk 0:04:50.5]} 4.
Bg5 {[%clk 0:04:56.4]} 4... c5 {[%clk 0:04:47.9]} 5. e3 {[%clk 0:04:46.8]} 5...
cxd4 {[%clk 0:04:37.2]} 6. exd4 {[%clk 0:04:46.7]} 6... Be7 {[%clk 0:04:35.1]}
7. Nf3 {[%clk 0:04:44.3]} 7... O-O {[%clk 0:04:33.3]} 8. Bd3 {[%clk 0:04:41.3]}
8... Nc6 {[%clk 0:04:26.6]} 9. O-O {[%clk 0:04:37.5]} 9... Re8 {[%clk
0:04:15.9]} 10. cxd5 {[%clk 0:04:17.6]} 10... Nxd5 {[%clk 0:04:12.8]} 11. Bxe7
{[%clk 0:04:14.6]} 11... Ndxe7 {[%clk 0:04:10.9]} 12. Bxh7+ {[%clk 0:03:58.3]}
12... Kxh7 {[%clk 0:03:37]} 13. Ng5+ {[%clk 0:03:56.3]} 13... Kg8 {[%clk
0:03:36.2]} 14. Qh5 {[%clk 0:03:52.1]} 14... Ng6 {[%clk 0:03:34]} 15. Rad1
{[%clk 0:03:31]} 15... Qf6 {[%clk 0:03:06.6]} 16. d5 {[%clk 0:03:20.5]} 16...
Nce5 {[%clk 0:02:43.6]} 17. Nce4 {[%clk 0:03:03.7]} 17... Qf5 {[%clk 0:02:14.3]}
18. Nd6 {[%clk 0:02:42.3]} 18... Qg4 {[%clk 0:02:02.4]} 19. Qxg4 {[%clk
0:02:37.5]} 19... Nxg4 {[%clk 0:02:01.2]} 20. Nxe8 {[%clk 0:02:37.1]} 20... exd5
{[%clk 0:01:49.7]} 21. Nc7 {[%clk 0:02:20.9]} 21... Rb8 {[%clk 0:01:46.1]} 22.
Rxd5 {[%clk 0:02:17]} 22... Be6 {[%clk 0:01:38]} 23. Ncxe6 {[%clk 0:02:14.1]}
23... fxe6 {[%clk 0:01:34.7]} 24. Nxe6 {[%clk 0:02:13.3]} 24... Kf7 {[%clk
0:01:22.8]} 25. Nc5 {[%clk 0:02:06.8]} 25... Rh8 {[%clk 0:01:16]} 26. h3 {[%clk
0:02:03.9]} 26... Nf6 {[%clk 0:01:11.1]} 27. Rd3 {[%clk 0:02:00.4]} 1-0

[Event "Live Chess"]
[Site "Chess.com"]
[Date "2024.06.02"]
[Round "-"]
[White "Dhaydon19"]
[Black "ameetghasi100"]
[Result "1/2-1/2"]
[WhiteElo "2631"]
[BlackElo "2788"]
[TimeControl "300"]
[EndTime "2:08:00 PDT"]
[Termination "Game drawn by agreement"]

1. d4 {[%clk 0:04:58.5]} 1... Nf6 {[%clk 0:04:58.7]} 2. c3 {[%clk 0:04:58.3]}
2... d6 {[%clk 0:04:57.5]} 3. Nf3 {[%clk 0:04:58.2]} 3... Nc6 {[%clk 0:04:55]}
4. g3 {[%clk 0:04:57.5]} 4... g6 {[%clk 0:04:54.6]} 5. Bg2 {[%clk 0:04:56.7]}
5... Bg7 {[%clk 0:04:54.2]} 6. O-O {[%clk 0:04:56.4]} 6... O-O {[%clk
0:04:53.6]} 7. Qc2 {[%clk 0:04:55.8]} 7... Bf5 {[%clk 0:04:52.7]} 8. Qb3 {[%clk
0:04:54.6]} 8... Rb8 {[%clk 0:04:48.7]} 9. Nbd2 {[%clk 0:04:53.5]} 9... Qd7
{[%clk 0:04:46.8]} 10. Re1 {[%clk 0:04:51.8]} 10... Bh3 {[%clk 0:04:45.1]} 11.
e4 {[%clk 0:04:49.5]} 11... Bxg2 {[%clk 0:04:41.6]} 12. Kxg2 {[%clk 0:04:49.4]}
12... e5 {[%clk 0:04:33.9]} 13. dxe5 {[%clk 0:04:40.1]} 13... dxe5 {[%clk
0:04:31.3]} 14. Nc4 {[%clk 0:04:39.1]} 14... Rfe8 {[%clk 0:04:27]} 15. a4 {[%clk
0:04:37.8]} 15... Qg4 {[%clk 0:04:23]} 16. Qc2 {[%clk 0:04:33.2]} 16... Qe6
{[%clk 0:04:21.3]} 17. Ne3 {[%clk 0:04:30.8]} 17... h6 {[%clk 0:04:20.3]} 18. h3
{[%clk 0:04:29.2]} 18... Na5 {[%clk 0:04:14.6]} 19. Rb1 {[%clk 0:04:13.3]} 19...
Nb3 {[%clk 0:04:09.3]} 20. Nd2 {[%clk 0:04:08.6]} 20... Nxc1 {[%clk 0:04:04.2]}
21. Rbxc1 {[%clk 0:04:06.5]} 21... h5 {[%clk 0:04:04.1]} 22. Nf3 {[%clk
0:04:03.8]} 22... Bh6 {[%clk 0:04:02.7]} 23. Rcd1 {[%clk 0:04:03.4]} 23... Rbd8
{[%clk 0:03:58.6]} 24. h4 {[%clk 0:03:57.6]} 24... Rxd1 {[%clk 0:03:54.9]} 25.
Nxd1 {[%clk 0:03:51.2]} 25... Rd8 {[%clk 0:03:53.8]} 26. Ne3 {[%clk 0:03:49.3]}
26... c6 {[%clk 0:03:51.9]} 27. b3 {[%clk 0:03:45]} 27... Ng4 {[%clk 0:03:44.6]}
28. Nc4 {[%clk 0:03:41.9]} 28... b5 {[%clk 0:03:43.2]} 29. axb5 {[%clk
0:03:39.1]} 29... cxb5 {[%clk 0:03:43.1]} 30. Na3 {[%clk 0:03:36.1]} 30... Qc6
{[%clk 0:03:39.6]} 31. c4 {[%clk 0:03:27.9]} 31... b4 {[%clk 0:03:35.2]} 32. Nb1
{[%clk 0:03:26.7]} 32... a5 {[%clk 0:03:33.5]} 33. Re2 {[%clk 0:03:20.9]} 33...
Rd6 {[%clk 0:03:21.5]} 34. Nbd2 {[%clk 0:03:19.7]} 34... Qc5 {[%clk 0:03:17.2]}
35. Nf1 {[%clk 0:03:15.2]} 35... Rb6 {[%clk 0:03:07.2]} 36. N3h2 {[%clk
0:03:11]} 36... Nf6 {[%clk 0:02:58.3]} 37. Qa2 {[%clk 0:02:57.7]} 37... Ra6
{[%clk 0:02:53.4]} 38. Qa4 {[%clk 0:02:55.4]} 38... Rd6 {[%clk 0:02:43.1]} 39.
Ne3 {[%clk 0:02:48.9]} 39... Bxe3 {[%clk 0:02:34.9]} 40. Rxe3 {[%clk 0:02:48.8]}
40... Rd2 {[%clk 0:02:32.2]} 41. Rf3 {[%clk 0:02:47.8]} 41... Kg7 {[%clk
0:02:21.6]} 42. Nf1 {[%clk 0:02:34]} 42... Re2 {[%clk 0:02:20.4]} 43. Ne3 {[%clk
0:02:30.9]} 43... Ng4 {[%clk 0:02:07.9]} 44. Nd1 {[%clk 0:02:06.1]} 44... Rd2
{[%clk 0:01:58.8]} 45. Qe8 {[%clk 0:02:04.2]} 45... Qf8 {[%clk 0:01:57.2]} 46.
Qxf8+ {[%clk 0:02:00.8]} 46... Kxf8 {[%clk 0:01:57.1]} 47. Ne3 {[%clk 0:02:00]}
47... Nxe3+ {[%clk 0:01:49.9]} 48. Rxe3 {[%clk 0:01:59.9]} 48... Ke7 {[%clk
0:01:48]} 49. Kf3 {[%clk 0:01:57.3]} 49... Ke6 {[%clk 0:01:45.3]} 50. Re2 {[%clk
0:01:53.5]} 50... Rd3+ {[%clk 0:01:41.4]} 51. Re3 {[%clk 0:01:52.7]} 51... Rd1
{[%clk 0:01:40.7]} 52. Ke2 {[%clk 0:01:50]} 52... Rb1 {[%clk 0:01:38]} 53. Rd3
{[%clk 0:01:37.9]} 53... f5 {[%clk 0:01:36.8]} 54. exf5+ {[%clk 0:01:34.4]}
54... gxf5 {[%clk 0:01:36.7]} 55. c5 {[%clk 0:01:29.7]} 55... Rc1 {[%clk
0:01:34.6]} 56. Rd6+ {[%clk 0:01:26.3]} 56... Ke7 {[%clk 0:01:33.7]} 57. Rd5
{[%clk 0:01:25]} 57... Ke6 {[%clk 0:01:32.9]} 58. Rd6+ {[%clk 0:01:24]} 58...
Kf7 {[%clk 0:01:31.5]} 59. Rd5 {[%clk 0:01:23.5]} 59... Rc3 {[%clk 0:01:15.5]}
60. c6 {[%clk 0:01:22]} 60... Rxb3 {[%clk 0:01:04]} 61. Rxa5 {[%clk 0:01:19.9]}
61... Ke6 {[%clk 0:00:47.5]} 62. Rc5 {[%clk 0:01:16.2]} 62... Rc3 {[%clk
0:00:46.7]} 63. Rxc3 {[%clk 0:01:13.3]} 63... bxc3 {[%clk 0:00:46.6]} 64. Kd3
{[%clk 0:01:11.4]} 64... Kd6 {[%clk 0:00:45.8]} 65. Kxc3 {[%clk 0:01:10.2]}
65... Kxc6 {[%clk 0:00:45.3]} 1/2-1/2